bitfinex/quotes_BTCUSD_20250617
["timestamp","ask_amount","ask_price","bid_price","bid_amount"]
[1750197571665,0.66910649,104710.0,104700.0,0.04152]
[1750197575625,0.66910649,104710.0,104700.0,0.23254196]
[1750197575774,0.66910649,104710.0,104700.0,0.04152]
[1750197580008,0.66910649,104710.0,104700.0,0.07202]
[1750197581008,0.69774696,104710.0,104700.0,0.07202]
[1750197583413,0.79389618,104710.0,104700.0,0.07202]
[1750197584515,0.79389618,104710.0,104700.0,0.10402]
[1750197585824,0.54058962,104700.0,104690.0,0.25314021]
[1750197586041,0.56353314,104700.0,104690.0,0.10358]
[1750197586470,0.59217361,104700.0,104690.0,0.10358]
[1750197586687,0.68832283,104700.0,104690.0,0.10358]
[1750197586900,0.65968236,104700.0,104690.0,0.29462021]
[1750197587188,0.65968236,104700.0,104690.0,0.30417222]
[1750197587392,0.65968236,104700.0,104690.0,0.30517222]
[1750197590221,0.65968236,104700.0,104690.0,0.0631]
[1750197590476,0.56353314,104700.0,104690.0,0.10458]
[1750197594709,0.59217361,104700.0,104690.0,0.10458]
[1750197594934,0.56353314,104700.0,104690.0,0.10458]
[1750197595588,0.56353314,104700.0,104690.0,0.10358]
[1750197596016,0.56453314,104700.0,104690.0,0.10358]
[1750197596896,0.59317361,104700.0,104690.0,0.10358]
[1750197597330,0.59417361,104700.0,104690.0,0.10358]
[1750197598238,0.56553314,104700.0,104690.0,0.10358]
[1750197598891,0.56553314,104700.0,104690.0,0.07158]
[1750197599884,0.56553314,104700.0,104690.0,0.10158]
[1750197600358,0.56553314,104700.0,104690.0,0.29262021]
[1750197600605,0.59416821,104700.0,104690.0,0.32127513]
[1750197600827,0.40314616,104700.0,104690.0,0.32127513]
[1750197601052,0.38404452,104700.0,104690.0,0.32127513]
[1750197601274,0.38404434,104700.0,104690.0,0.43205774]
[1750197601500,0.36110063,104700.0,104690.0,0.43205774]
[1750197601957,0.37065108,104700.0,104690.0,0.43205774]
[1750197602183,0.40312135,104700.0,104690.0,0.43205774]
[1750197602450,0.38020172,104700.0,104690.0,0.43205774]
[1750197602677,0.41267224,104700.0,104690.0,0.43205774]
[1750197603149,0.03065145,104700.0,104690.0,0.58981774]
[1750197603380,0.03065237,104700.0,104690.0,0.43812601]
[1750197603609,0.03065237,104700.0,104690.0,0.44160929]
[1750197603610,0.02110137,104700.0,104690.0,0.44160929]
[1750197603840,0.03065219,104700.0,104690.0,0.44160929]
[1750197604068,0.0402031,104700.0,104690.0,0.44160929]
[1750197604996,0.24077606,104700.0,104690.0,0.25114021]
[1750197605224,0.22167469,104700.0,104690.0,0.30213222]
[1750197605729,0.21212387,104700.0,104690.0,0.30213222]
[1750197605954,0.55212387,104700.0,104690.0,0.31168413]
[1750197606172,0.57504255,104700.0,104690.0,0.31168413]
[1750197606626,0.56549164,104700.0,104690.0,0.30213222]
[1750197606855,0.56549164,104700.0,104690.0,0.30213212]
[1750197607070,0.56549164,104700.0,104690.0,0.31168394]
[1750197607565,0.56549164,104700.0,104690.0,0.30213212]
[1750197607805,0.56549164,104700.0,104690.0,0.29258021]
[1750197608555,0.56549164,104700.0,104690.0,0.10154]
[1750197608786,0.64114127,104700.0,104690.0,0.04144]
[1750197609483,0.56549164,104700.0,104690.0,0.04144]
[1750197609704,0.56549164,104700.0,104690.0,0.07204]
[1750197610199,0.56549164,104700.0,104690.0,0.0306]
[1750197610451,0.54059203,104690.0,104680.0,0.0310422]
[1750197610679,0.56351071,104690.0,104680.0,0.1056822]
[1750197610885,0.65819998,104690.0,104680.0,0.1056822]
[1750197611164,0.65819998,104690.0,104680.0,0.1036822]
[1750197611611,0.65819998,104690.0,104680.0,0.0724822]
[1750197612757,0.65819998,104690.0,104680.0,0.0734822]
[1750197614565,0.54086108,104690.0,104680.0,0.0734822]
[1750197614816,0.5504129,104690.0,104680.0,0.0734822]
[1750197615062,0.5504129,104690.0,104680.0,0.0320422]
[1750197615302,0.5504129,104690.0,104680.0,0.1045822]
[1750197618667,0.5504129,104690.0,104680.0,0.30519358]
[1750197618887,0.5504129,104690.0,104680.0,0.31474641]
[1750197619144,0.5504129,104690.0,104680.0,0.1045822]
[1750197619387,0.56461931,104690.0,104680.0,0.1045822]
[1750197620313,0.5504129,104690.0,104680.0,0.29564066]
[1750197621270,0.5504129,104690.0,104680.0,0.0425822]
[1750197621720,0.5504129,104690.0,104680.0,0.0756822]
[1750197623772,0.5504129,104690.0,104680.0,0.1056822]
[1750197626187,0.5504129,104690.0,104680.0,0.3062934]
[1750197627085,0.5504129,104690.0,104680.0,0.32539859]
[1750197627784,0.5504129,104690.0,104680.0,0.31584604]
[1750197628461,0.34982087,104690.0,104680.0,0.31584604]
[1750197628713,0.34600556,104690.0,104680.0,0.33495087]
[1750197629605,0.35555684,104690.0,104680.0,0.33495087]
[1750197631154,0.54659705,104690.0,104680.0,0.32539859]
[1750197631366,0.54659705,104690.0,104680.0,0.33495105]
[1750197631583,0.53704577,104690.0,104680.0,0.25530066]
[1750197631819,0.55994849,104690.0,104680.0,0.26485358]
[1750197632254,0.55994849,104690.0,104680.0,0.27440641]
[1750197633565,0.22603201,104690.0,104680.0,0.27440641]
[1750197633791,0.21014358,104690.0,104680.0,0.27440641]
[1750197633999,0.21014358,104690.0,104680.0,0.28395915]
[1750197635134,0.21014358,104690.0,104680.0,0.29351179]
[1750197635561,0.55014358,104690.0,104680.0,0.29351179]
[1750197635781,0.55014358,104690.0,104680.0,0.27440641]
[1750197635999,0.55395495,104690.0,104680.0,0.27440641]
[1750197636211,0.55395495,104690.0,104680.0,0.07379512]
[1750197636459,0.55395495,104690.0,104680.0,0.30633358]
[1750197636672,0.55395495,104690.0,104680.0,0.32543915]
[1750197636883,0.55395495,104690.0,104680.0,0.33499179]
[1750197637979,0.55395495,104690.0,104680.0,0.32543915]
[1750197640983,0.55395495,104690.0,104680.0,0.33499179]
[1750197643851,0.55395495,104690.0,104680.0,0.34454434]
[1750197646330,0.57305869,104690.0,104680.0,0.34454388]
[1750197647232,0.57305869,104690.0,104680.0,0.33499142]
[1750197647452,0.55014395,104690.0,104680.0,0.33499142]
[1750197647686,0.57307535,104690.0,104680.0,0.33499142]
[1750197648132,0.57307535,104690.0,104680.0,0.30633349]
[1750197648368,0.56352362,104690.0,104680.0,0.30633358]
[1750197648591,0.64903177,104690.0,104680.0,0.2335222]
[1750197648865,0.64903177,104690.0,104680.0,0.11527512]
[1750197649818,0.64903177,104690.0,104680.0,0.30633358]
[1750197650489,0.55397161,104690.0,104680.0,0.30633358]
[1750197650953,0.55397161,104690.0,104680.0,0.1057222]
[1750197651418,0.55397161,104690.0,104680.0,0.0757222]
[1750197651655,0.55397161,104690.0,104680.0,0.0342422]
[1750197651881,0.74257762,104690.0,104680.0,0.0011422]
[1750197652107,0.85664417,104690.0,104680.0,0.0011422]
[1750197652335,0.90155751,104690.0,104680.0,0.0011422]
[1750197652563,0.89483809,104690.0,104680.0,0.0011422]
[1750197652804,0.86617384,104690.0,104680.0,0.0011422]
[1750197653033,0.93092887,104690.0,104680.0,1e-08]
[1750197653280,0.93092887,104690.0,104670.0,0.04148]
[1750197653281,1.1521112,104680.0,104670.0,0.03703022]
[1750197653506,1.5717864,104680.0,104670.0,0.0141014]
[1750197654210,1.7217864,104680.0,104670.0,0.00014222]
[1750197654434,1.75998032,104680.0,104670.0,0.00014222]
[1750197654652,0.21022354,104650.0,104640.0,0.0762522]
[1750197654871,0.21022409,104650.0,104640.0,0.11783447]
[1750197655544,0.2389173,104650.0,104640.0,0.11783447]
[1750197656223,0.2389173,104650.0,104640.0,0.12083447]
[1750197656925,0.27167029,104650.0,104640.0,0.12083447]
[1750197657196,0.27167029,104650.0,104640.0,0.04658227]
[1750197657627,0.27167029,104650.0,104640.0,0.24727033]
[1750197657836,0.27167029,104650.0,104640.0,0.24527033]
[1750197658054,0.27167029,104650.0,104640.0,0.24227033]
[1750197658269,0.27167029,104650.0,104640.0,0.24427033]
[1750197658919,0.27167029,104650.0,104640.0,0.25382681]
[1750197659139,0.27167029,104650.0,104640.0,0.28855439]
[1750197659359,0.27167029,104650.0,104640.0,0.30533931]
[1750197660671,0.27167029,104650.0,104640.0,0.31489533]
[1750197660886,0.28122595,104650.0,104640.0,0.34739533]
[1750197661366,0.28122595,104650.0,104640.0,0.33783931]
[1750197661821,0.27167066,104650.0,104640.0,0.33783931]
[1750197662068,0.68870865,104650.0,104640.0,0.04358227]
[1750197664973,0.4014462,104650.0,104640.0,0.27657024]
[1750197665169,0.4014462,104650.0,104640.0,0.35227961]
[1750197665452,0.37275299,104650.0,104640.0,0.40708137]
[1750197665661,0.55973857,104670.0,104660.0,0.0654]
[1750197665882,0.55018492,104670.0,104660.0,0.0654]
[1750197666107,0.64633414,104670.0,104660.0,0.07454]
[1750197666551,0.64633414,104670.0,104660.0,0.04144]
[1750197666773,0.65033414,104670.0,104660.0,0.04144]
[1750197666996,0.68303414,104670.0,104660.0,0.04144]
[1750197667236,0.70586955,104670.0,104660.0,0.04144]
[1750197667452,0.73945527,104670.0,104660.0,0.04144]
[1750197668107,0.77105527,104670.0,104660.0,0.04144]
[1750197668336,0.21022427,104650.0,104640.0,0.06374227]
[1750197668599,0.62195786,104650.0,104640.0,0.04158227]
[1750197668802,0.65295786,104650.0,104640.0,0.04158227]
[1750197669696,0.37423427,104650.0,104640.0,0.04158227]
[1750197669897,0.5653475,104650.0,104640.0,0.04258227]
[1750197670963,0.5653475,104650.0,104640.0,0.04458227]
[1750197671641,0.5343475,104650.0,104640.0,0.04458227]
[1750197674490,0.52559374,104650.0,104640.0,0.04458227]
[1750197675155,0.62174296,104650.0,104640.0,0.04458227]
[1750197676484,0.68404296,104650.0,104640.0,0.04458227]
[1750197677854,1.33028472,104650.0,104640.0,0.04203888]
[1750197678074,1.33028472,104650.0,104640.0,0.01469888]
[1750197678075,1.35891947,104650.0,104640.0,0.01469888]
[1750197678298,1.35891947,104650.0,104640.0,0.01018349]
[1750197678516,0.55026409,104630.0,104620.0,0.271]
[1750197678733,0.73095033,104630.0,104620.0,0.27147342]
[1750197680085,0.73195033,104630.0,104620.0,0.27147342]
[1750197680302,0.7431924,104630.0,104620.0,0.27147342]
[1750197681428,0.7431924,104630.0,104620.0,0.00047342]
[1750197681429,0.86806891,104630.0,104620.0,0.00047342]
[1750197681671,0.55030429,104610.0,104600.0,4e-05]
[1750197681906,0.79150188,104610.0,104600.0,4e-05]
[1750197682143,0.75960188,104610.0,104600.0,4e-05]
[1750197683052,0.78841458,104610.0,104600.0,4e-05]
[1750197683305,0.79241458,104610.0,104600.0,4e-05]
[1750197683954,0.8885638,104610.0,104600.0,4e-05]
[1750197684198,0.8905638,104610.0,104600.0,4e-05]
[1750197685262,0.98680556,104610.0,104600.0,4e-05]
[1750197686761,0.89065634,104610.0,104600.0,0.04148]
[1750197687439,0.89069634,104610.0,104600.0,0.04148]
[1750197687948,0.92884481,104610.0,104600.0,0.04148]
[1750197693312,0.90023346,104610.0,104600.0,0.04148]
[1750197696275,0.90023346,104610.0,104600.0,4e-05]
[1750197696533,0.95745617,104610.0,104600.0,4e-05]
[1750197696768,1.48540539,104610.0,104600.0,4e-05]
[1750197697007,1.44725692,104610.0,104600.0,4e-05]
[1750197697672,0.21034451,104590.0,104580.0,0.33334]
[1750197697893,0.26173252,104590.0,104580.0,0.33334]
[1750197698873,0.31655574,104590.0,104580.0,0.33434]
[1750197699120,0.31655574,104590.0,104580.0,0.33448235]
[1750197699353,0.31655574,104590.0,104580.0,0.33548235]
[1750197700442,0.34460338,104590.0,104580.0,0.33548235]
[1750197700692,0.28978016,104590.0,104580.0,0.33548235]
[1750197703137,0.44766016,104590.0,104580.0,0.33548235]
[1750197703570,0.48571585,104590.0,104580.0,0.33548235]
[1750197704242,0.44766016,104590.0,104580.0,0.33548235]
[1750197704432,0.52107615,104590.0,104580.0,0.33548235]
[1750197704680,0.55913184,104590.0,104580.0,0.33548235]
[1750197705104,0.40125184,104590.0,104580.0,0.33528899]
[1750197705317,0.36319615,104590.0,104580.0,0.10588235]
[1750197705527,0.40125184,104590.0,104580.0,0.10588235]
[1750197707544,0.37271007,104590.0,104580.0,0.10588235]
[1750197708111,0.76993278,104590.0,104580.0,0.10588235]
[1750197708959,0.76993278,104590.0,104580.0,0.07488235]
[1750197709186,0.76993278,104590.0,104580.0,0.03344235]
[1750197709435,0.76993278,104590.0,104580.0,0.00214235]
[1750197709436,1.35119614,104590.0,104580.0,0.00214235]
[1750197709644,0.23110302,104580.0,104570.0,0.04148]
[1750197709875,0.50797848,104580.0,104570.0,0.04162258]
[1750197710547,0.50797848,104580.0,104570.0,0.00014258]
[1750197711410,0.58549033,104580.0,104570.0,0.00014258]
[1750197711825,0.55519033,104580.0,104570.0,0.00014258]
[1750197713134,0.58669033,104580.0,104570.0,0.00014258]
[1750197713384,0.78772024,104580.0,104570.0,0.00014258]
[1750197714684,0.75642024,104580.0,104570.0,0.00014258]
[1750197715565,0.81365683,104580.0,104570.0,0.00014258]
[1750197715781,0.75642024,104580.0,104570.0,0.00014258]
[1750197716263,0.81365686,104580.0,104570.0,0.00014258]
[1750197718885,0.65577686,104580.0,104570.0,0.00014258]
[1750197719513,0.62427686,104580.0,104570.0,0.00014258]
[1750197720137,0.52812764,104580.0,104570.0,0.00014258]
[1750197721593,0.59122764,104580.0,104570.0,0.00014258]
[1750197723554,0.59121118,104580.0,104570.0,0.00014258]
[1750197723948,0.59221118,104580.0,104570.0,0.00014258]
[1750197724168,0.56111118,104580.0,104570.0,0.00014258]
[1750197724604,0.56411118,104580.0,104570.0,0.00014258]
[1750197725291,0.6602604,104580.0,104570.0,0.00014258]
[1750197725738,0.8181404,104580.0,104570.0,0.00014258]
[1750197725949,0.68899118,104580.0,104570.0,0.00014258]
[1750197728502,0.72209118,104580.0,104570.0,0.00014258]
[1750197731311,0.75349118,104580.0,104570.0,0.00014258]
[1750197734942,0.54082222,104570.0,104560.0,0.07224]
[1750197735145,0.72667599,104570.0,104560.0,0.07238262]
[1750197735529,0.63052677,104570.0,104560.0,0.07238262]
[1750197735735,0.63052677,104570.0,104560.0,0.10538262]
[1750197736990,0.63152677,104570.0,104560.0,0.10538262]
[1750197738211,0.66027377,104570.0,104560.0,0.10538262]
[1750197738642,0.78940677,104570.0,104560.0,0.10538262]
[1750197738923,0.55040458,104560.0,104550.0,0.22543376]
[1750197739143,0.57325082,104560.0,104550.0,0.26157128]
[1750197740012,0.57325082,104560.0,104550.0,0.26257128]
[1750197740434,0.58281415,104560.0,104550.0,0.27313599]
[1750197740644,0.58281415,104560.0,104550.0,0.27313608]
[1750197741290,0.57325109,104560.0,104550.0,0.26357165]
[1750197741499,0.56368776,104560.0,104550.0,0.26357165]
[1750197741952,0.56368776,104560.0,104550.0,0.29637165]
[1750197742151,0.65783584,104560.0,104550.0,0.32927165]
[1750197742377,0.65783584,104560.0,104550.0,0.31014252]
[1750197742611,0.64827205,104560.0,104550.0,0.31014252]
[1750197743924,0.55412397,104560.0,104550.0,0.31970713]
[1750197744349,0.55412397,104560.0,104550.0,0.32927156]
[1750197745423,0.55412397,104560.0,104550.0,0.31970713]
[1750197745635,0.56368776,104560.0,104550.0,0.3388359]
[1750197745912,0.57325128,104560.0,104550.0,0.3388359]
[1750197746148,0.44277355,104560.0,104550.0,0.04358262]
[1750197746454,0.66270484,104560.0,104550.0,0.04358262]
[1750197746880,0.9089466,104560.0,104550.0,0.04358262]
[1750197747119,0.9089466,104560.0,104550.0,0.04258262]
[1750197747344,0.8786466,104560.0,104550.0,0.00014262]
[1750197747570,0.73209128,104560.0,104550.0,0.06264262]
[1750197747816,0.73209128,104560.0,104550.0,0.03204262]
[1750197748523,0.79489128,104560.0,104550.0,0.00014262]
[1750197748758,0.82354484,104560.0,104550.0,0.00014262]
[1750197749756,0.60290484,104560.0,104550.0,0.00014262]
[1750197749999,0.57425128,104560.0,104550.0,0.03314262]
[1750197750930,0.57425128,104560.0,104550.0,0.00014262]
[1750197750931,0.60595128,104560.0,104550.0,0.00014262]
[1750197751168,0.7021005,104560.0,104550.0,0.00014262]
[1750197753178,0.7322005,104560.0,104550.0,0.00014262]
[1750197753656,0.73233128,104560.0,104550.0,0.00014262]
[1750197754182,0.73241128,104560.0,104550.0,0.00014262]
[1750197754922,0.37340976,104560.0,104550.0,0.00014262]
[1750197755159,0.57425119,104560.0,104550.0,0.31210779]
[1750197755629,0.57425119,104560.0,104550.0,0.26110336]
[1750197755859,0.56468767,104560.0,104550.0,0.31210797]
[1750197756313,0.56468767,104560.0,104550.0,0.3216724]
[1750197756542,0.56468767,104560.0,104550.0,0.31210797]
[1750197756806,0.56468767,104560.0,104550.0,0.32167249]
[1750197757350,0.36384624,104560.0,104550.0,0.34080108]
[1750197757608,0.02384624,104560.0,104550.0,0.60994369]
[1750197757856,0.001,104560.0,104550.0,0.84262898]
[1750197758095,0.14658806,104590.0,104580.0,0.29696706]
[1750197758096,0.02804764,104590.0,104580.0,0.29696706]
[1750197758340,0.02804764,104590.0,104580.0,0.49696706]
[1750197758586,0.0479305,104610.0,104600.0,0.29394401]
[1750197758827,0.58867658,104610.0,104600.0,0.07414]
[1750197759057,0.63672853,104610.0,104600.0,0.28446493]
[1750197759307,0.24279899,104610.0,104600.0,0.29402497]
[1750197759575,0.55986388,104610.0,104600.0,0.29402497]
[1750197759815,0.57323995,104610.0,104600.0,0.29402497]
[1750197760060,0.55130484,104610.0,104600.0,0.29416759]
[1750197760288,0.5741815,104610.0,104600.0,0.29416759]
[1750197760541,0.55130484,104610.0,104600.0,0.29416759]
[1750197761468,0.55130484,104610.0,104600.0,0.30372754]
[1750197761753,0.36971304,104610.0,104600.0,0.34338676]
[1750197761979,0.55130383,104610.0,104600.0,0.34836803]
[1750197762219,0.57606479,104610.0,104600.0,0.04158262]
[1750197762433,0.57606479,104610.0,104600.0,0.2327872]
[1750197762682,0.57606479,104610.0,104600.0,0.27102654]
[1750197762683,0.37531889,104610.0,104600.0,0.27102654]
[1750197762936,0.39443687,104610.0,104600.0,0.34796739]
[1750197763401,0.58562382,104610.0,104600.0,0.2650872]
[1750197763647,0.58562382,104610.0,104600.0,0.25190737]
[1750197764116,0.58562382,104610.0,104600.0,0.26146759]
[1750197764388,0.58562382,104610.0,104600.0,0.2327872]
[1750197764389,0.59523538,104610.0,104600.0,0.2327872]
[1750197764611,0.59523538,104610.0,104600.0,0.24234733]
[1750197764846,0.36576031,104610.0,104600.0,0.3479673]
[1750197765095,0.59518249,104610.0,104600.0,0.04158262]
[1750197765342,0.57606506,104610.0,104600.0,0.21046719]
[1750197765608,0.59518195,104610.0,104600.0,0.06254262]
[1750197765859,0.6379647,104610.0,104600.0,0.00014262]
[1750197766108,0.53124115,104580.0,104570.0,0.2712]
[1750197766379,0.53124115,104580.0,104570.0,0.46250673]
[1750197766603,0.53124115,104580.0,104570.0,0.04144729]
[1750197766858,0.59394115,104580.0,104570.0,0.04144729]
[1750197767093,0.53124115,104580.0,104570.0,0.04144729]
[1750197767333,0.53124115,104580.0,104570.0,0.25183239]
[1750197767578,0.34,104580.0,104570.0,0.27693584]
[1750197767838,0.34,104580.0,104570.0,0.35079817]
[1750197768066,0.35912273,104580.0,104570.0,0.51059817]
[1750197768286,0.35912264,104580.0,104570.0,0.51059817]
[1750197768756,0.35912264,104580.0,104570.0,0.30939817]
[1750197769029,0.35912264,104580.0,104570.0,0.51059817]
[1750197769249,0.34,104580.0,104570.0,0.52705297]
[1750197769539,0.34,104580.0,104570.0,0.72817297]
[1750197770707,0.34,104580.0,104570.0,0.72917297]
[1750197770940,0.03823961,104600.0,104590.0,0.20576372]
[1750197771138,0.03823961,104600.0,104590.0,0.24716372]
[1750197771361,0.03823961,104600.0,104590.0,0.40704372]
[1750197771594,0.00955968,104600.0,104590.0,0.46089732]
[1750197771805,0.02867866,104600.0,104590.0,0.4973254]
[1750197772025,0.03823843,104600.0,104590.0,0.4973254]
[1750197772233,0.03923843,104600.0,104590.0,0.59356716]
[1750197772660,0.0105594,104600.0,104590.0,0.59356716]
[1750197772897,0.03067857,104600.0,104590.0,0.59356716]
[1750197773120,0.37067912,104600.0,104590.0,0.55320749]
[1750197773327,0.38979929,104600.0,104590.0,0.54152876]
[1750197773529,0.04979929,104600.0,104590.0,0.54152876]
[1750197773737,0.38979929,104600.0,104590.0,0.54152876]
[1750197774034,0.38023916,104600.0,104590.0,0.54152876]
[1750197774252,0.37067903,104600.0,104590.0,0.54152876]
[1750197774683,0.38023907,104600.0,104590.0,0.54152876]
[1750197774885,0.58100378,104600.0,104590.0,0.54152876]
[1750197775087,0.3897992,104600.0,104590.0,0.54152876]
[1750197775259,0.38023907,104600.0,104590.0,0.54152876]
[1750197775471,0.56188416,104600.0,104590.0,0.42616573]
[1750197775679,0.56188416,104600.0,104590.0,0.44528718]
[1750197775829,0.37067958,104600.0,104590.0,0.45484768]
[1750197776275,0.57144429,104600.0,104590.0,0.45484768]
[1750197776476,0.36111954,104600.0,104590.0,0.45484768]
[1750197776724,0.37067903,104600.0,104590.0,0.51844768]
[1750197776871,0.37067894,104600.0,104590.0,0.51844768]
[1750197777175,0.342,104600.0,104590.0,0.61468944]
[1750197777331,0.002,104600.0,104590.0,0.61468944]
[1750197777971,0.01155958,104600.0,104590.0,0.61468944]
[1750197778189,0.0115594,104600.0,104590.0,0.61468944]
[1750197779358,0.02111898,104600.0,104590.0,0.61468944]
[1750197780375,0.03067875,104600.0,104590.0,0.35202749]
[1750197780577,0.04023861,104600.0,104590.0,0.54344894]
[1750197780785,0.04023879,104600.0,104590.0,0.45480944]
[1750197780929,0.0402387,104600.0,104590.0,0.61508944]
[1750197781342,0.04979874,104600.0,104590.0,0.61508944]
[1750197781733,0.0402387,104600.0,104590.0,0.61508944]
[1750197782360,0.0402387,104600.0,104590.0,0.58348944]
[1750197782980,0.02111898,104600.0,104590.0,0.58348944]
[1750197783204,0.03067884,104600.0,104590.0,0.61378944]
[1750197783442,0.04023879,104600.0,104590.0,0.61378944]
[1750197783646,0.04023879,104600.0,104590.0,0.58368944]
[1750197784321,0.04979883,104600.0,104590.0,0.58368944]
[1750197784470,0.03067884,104600.0,104590.0,0.58368944]
[1750197784692,0.04023888,104600.0,104590.0,0.58368944]
[1750197784900,0.04979901,104600.0,104590.0,0.58368944]
[1750197785480,0.24100368,104600.0,104590.0,0.55308944]
[1750197785698,0.04023888,104600.0,104590.0,0.55308944]
[1750197785915,0.03067884,104600.0,104590.0,0.55308944]
[1750197786595,0.04023879,104600.0,104590.0,0.55308944]
[1750197786741,0.24100414,104600.0,104590.0,0.55308944]
[1750197786945,0.04979956,104600.0,104590.0,0.55308944]
[1750197787328,0.02111944,104600.0,104590.0,0.55308944]
[1750197787693,0.03067948,104600.0,104590.0,0.55308944]
[1750197788468,0.02111935,104600.0,104590.0,0.55308944]
[1750197788686,0.23144419,104600.0,104590.0,0.34480548]
[1750197788853,0.28859957,104600.0,104590.0,0.41848477]
[1750197789052,0.22188461,104600.0,104590.0,0.43760622]
[1750197789251,0.22188461,104600.0,104590.0,0.0428]
[1750197789252,0.57516309,104600.0,104590.0,0.0428]
[1750197789528,0.60566309,104600.0,104590.0,0.2032]
[1750197789986,0.20078346,104590.0,104580.0,0.73118462]
[1750197790194,0.20078346,104590.0,104580.0,0.94892547]
[1750197790408,0.01912145,104590.0,104580.0,0.95848688]
[1750197790870,0.59610305,104600.0,104590.0,0.21034451]
[1750197791100,0.59428208,104600.0,104590.0,0.20078383]
[1750197791304,0.40307732,104600.0,104590.0,0.2816051]
[1750197792353,0.40307732,104600.0,104590.0,0.2412446]
[1750197792555,0.40307732,104600.0,104590.0,0.2508051]
[1750197792964,0.38395714,104600.0,104590.0,0.39458771]
[1750197793381,0.002,104600.0,104590.0,0.39458771]
[1750197796840,0.002,104600.0,104590.0,0.59786771]
[1750197798366,0.0115594,104600.0,104590.0,0.59786771]
[1750197798900,0.04401918,104600.0,104590.0,0.88896771]
[1750197799236,0.03445969,104600.0,104590.0,0.88896771]
[1750197799450,0.02490029,104600.0,104590.0,0.88896771]
[1750197799877,0.03445969,104600.0,104590.0,0.88896771]
[1750197800310,0.02490029,104600.0,104590.0,0.88896771]
[1750197800517,0.03445978,104600.0,104590.0,0.88896771]
[1750197800742,0.03445969,104600.0,104590.0,0.88896771]
[1750197801559,0.06313899,104600.0,104590.0,0.82486771]
[1750197801755,0.0402387,104600.0,104590.0,0.82486771]
[1750197802260,0.03067866,104600.0,104590.0,0.82486771]
[1750197803009,0.05361707,104600.0,104590.0,0.82486771]
[1750197803203,0.06317702,104600.0,104590.0,0.82486771]
[1750197803427,0.05361707,104600.0,104590.0,0.82486771]
[1750197803613,0.06317693,104600.0,104590.0,0.82486771]
[1750197803864,0.07273688,104600.0,104590.0,0.82486771]
[1750197804364,0.06317693,104600.0,104590.0,0.82486771]
[1750197804568,0.07273697,104600.0,104590.0,0.82486771]
[1750197804768,0.06317693,104600.0,104590.0,0.53376771]
[1750197805432,0.05361707,104600.0,104590.0,0.53376771]
[1750197808378,0.04023861,104600.0,104590.0,0.53376771]
[1750197808807,0.03067866,104600.0,104590.0,0.53376771]
[1750197809008,0.03067866,104600.0,104590.0,0.37348771]
[1750197809215,0.27572275,104600.0,104590.0,0.41812468]
[1750197809432,0.26616298,104600.0,104590.0,0.40358383]
[1750197809866,0.22262287,104590.0,104580.0,0.72162311]
[1750197810100,0.24556128,104590.0,104580.0,0.94350658]
[1750197810307,0.24556128,104590.0,104580.0,0.9339448]
[1750197810760,0.24556128,104590.0,104580.0,0.6428448]
[1750197810974,0.22262287,104590.0,104580.0,0.6428448]
[1750197811182,0.22262287,104590.0,104580.0,0.6438448]
[1750197811378,0.22262287,104590.0,104580.0,0.6534064]
[1750197812389,0.22262287,104590.0,104580.0,0.65340676]
[1750197812588,0.25472287,104590.0,104580.0,0.66296836]
[1750197813089,0.25472287,104590.0,104580.0,0.65340676]
[1750197813301,0.25472287,104590.0,104580.0,0.66296836]
[1750197817556,0.25472287,104590.0,104580.0,0.67252986]
[1750197818030,0.27384451,104590.0,104580.0,0.67252931]
[1750197818232,0.08262164,104590.0,104580.0,0.67252931]
[1750197818607,0.09218269,104590.0,104580.0,0.67252931]
[1750197818806,0.08262164,104590.0,104580.0,0.67252931]
[1750197819350,0.43218269,104590.0,104580.0,0.4602079]
[1750197819564,0.63678494,104590.0,104580.0,0.29256347]
[1750197819696,0.44556207,104590.0,104580.0,0.65408603]
[1750197820295,0.02294006,104590.0,104580.0,0.76486864]
[1750197820502,0.00956032,104590.0,104580.0,0.79696809]
[1750197820934,0.01912091,104590.0,104580.0,0.79696809]
[1750197821362,0.01912082,104590.0,104580.0,0.79696809]
[1750197822012,0.43749964,104600.0,104590.0,0.21990519]
[1750197822241,0.38405913,104600.0,104590.0,0.21990519]
[1750197822437,0.37067884,104600.0,104590.0,0.21990519]
[1750197822644,0.37067893,104600.0,104590.0,0.21990519]
[1750197822840,0.37067884,104600.0,104590.0,0.21990519]
[1750197823054,0.37067875,104600.0,104590.0,0.21990519]
[1750197823265,0.38023852,104600.0,104590.0,0.21990519]
[1750197824402,0.4565598,104600.0,104590.0,0.21990519]
[1750197824605,0.70110553,104600.0,104590.0,0.21034488]
[1750197824830,0.70110553,104600.0,104590.0,0.21990574]
[1750197825075,0.64769887,104600.0,104590.0,0.21990574]
[1750197825227,0.64769887,104600.0,104590.0,0.22946651]
[1750197825457,0.64769887,104600.0,104590.0,0.21990574]
[1750197825657,0.64769887,104600.0,104590.0,0.26262574]
[1750197826098,0.64769887,104600.0,104590.0,0.43350651]
[1750197826413,0.28278461,104600.0,104590.0,0.42394574]
[1750197827100,0.28278461,104600.0,104590.0,0.41438488]
[1750197827315,0.28278461,104600.0,104590.0,0.42394574]
[1750197827956,0.28278461,104600.0,104590.0,0.41438488]
[1750197828187,0.27322484,104600.0,104590.0,0.20404]
[1750197828423,0.61322484,104600.0,104590.0,0.21360114]
[1750197828667,0.61322484,104600.0,104590.0,0.20404]
[1750197829132,0.6433944,104600.0,104590.0,0.04272]
[1750197829385,0.61366462,104580.0,104570.0,0.12146033]
[1750197829657,0.7990659,104580.0,104570.0,0.12146033]
[1750197829913,0.55042498,104550.0,104540.0,0.26756652]
[1750197830209,0.58082498,104550.0,104540.0,0.48237205]
[1750197830402,0.58082498,104550.0,104540.0,0.2866974]
[1750197830627,0.58082498,104550.0,104540.0,0.4918574]
[1750197831081,0.35912895,104550.0,104540.0,0.4918974]
[1750197831306,0.36869366,104550.0,104540.0,0.29626247]
[1750197831537,0.37825846,104550.0,104540.0,0.50142247]
[1750197831775,0.56955449,104550.0,104540.0,0.48229205]
[1750197832019,0.58102554,104550.0,104540.0,0.31985223]
[1750197832485,0.58102554,104550.0,104540.0,0.33898338]
[1750197832975,0.35912914,104550.0,104540.0,0.3601137]
[1750197833767,0.55998997,104550.0,104540.0,0.3601137]
[1750197834231,0.55998997,104550.0,104540.0,0.35054863]
[1750197834483,0.62861393,104550.0,104540.0,0.27913223]
[1750197834697,0.68204922,104550.0,104540.0,0.1209722]
[1750197835133,0.71044582,104550.0,104540.0,0.1209722]
[1750197835360,0.63225743,104550.0,104540.0,0.1189722]
[1750197835998,0.63325743,104550.0,104540.0,0.1189722]
[1750197836436,0.63325743,104550.0,104540.0,0.31985205]
[1750197836652,0.63325743,104550.0,104540.0,0.31028652]
[1750197836860,0.63325743,104550.0,104540.0,0.31985223]
[1750197837068,0.63325743,104550.0,104540.0,0.32485223]
[1750197837294,0.63325743,104550.0,104540.0,0.31985223]
[1750197837502,0.61152195,104550.0,104540.0,0.3399832]
[1750197838152,0.57982195,104550.0,104540.0,0.3399832]